Cogmind - Beta 15 @@@ ROGUE MODE // 2025.09.20 @ 19:57:06 Player: Domo Result: Self-destructed Performance ------------- Evolutions (1) 500 Regions Visited (2) 400 Robots Destroyed (31) 155 Value Destroyed (785) 785 Prototype IDs (0) 0 Alien Tech Used (0) 0 Bonus (0) 0 TOTAL SCORE: 1840 Bonus ------- None Cogmind --------- Core Integrity 257/400 Matter 283/300 Energy 250/250 System Corruption 0% Temperature Cool (9) Movement Treading (160) Location -9/Materials Parts ------- > --- POWER (1) -------- Ion Engine > --- PROPULSION (2) --- Light Treads Light Treads > --- UTILITY (4) ------ Large Storage Unit Improved Terrain Scanner Improved Power Shielding Improved Power Shielding > --- WEAPON (2) ------- Grenade Launcher > --- INVENTORY (15) --- Ion Engine Light Treads Improved Treads Improved Heat Sink Weight Redist. System Core Shielding Light Armor Plating Hardlight Generator Hardlight Generator Light Assault Rifle Light Assault Rifle Shotgun Shotgun Improved Light Cannon Grenade Launcher Peak State ------------ > --- POWER ------------ Ion Engine > --- PROPULSION ------- Light Treads Light Treads > --- UTILITY ---------- Large Storage Unit Improved Terrain Scanner Improved Power Shielding Improved Power Shielding > --- WEAPON ----------- Light Assault Rifle Shotgun > --- INVENTORY -------- Ion Engine Light Treads Improved Treads Weight Redist. System Core Shielding Hardlight Generator Hardlight Generator Light Assault Rifle Shotgun Shotgun Grenade Launcher Grenade Launcher [Rating: 18] Favorites ----------- Power Ion Engine Engine Ion Engine Propulsion Light Treads Treads Light Treads Utility Improved Terrain Scanner Device Improved Terrain Scanner Storage Large Storage Unit Protection Improved Power Shielding Weapon Light Assault Rifle Ballistic Gun Light Assault Rifle Launcher Grenade Launcher Build | -11 -10 -9 ------- Run | Yrd Mat Mat Slots Evolved 2 | . . 2 Power . | . . . Propulsion . | . . . Utility 2 | . . 2 Weapon . | . . . Parts Attached 15 | 7 1 7 Power 2 | 1 . 1 Engine 2 | 1 . 1 Core . | . . . Reactor . | . . . Propulsion 4 | 2 . 2 Treads 4 | 2 . 2 Leg . | . . . Wheel . | . . . Hover . | . . . Flight . | . . . Utility 5 | 2 1 2 Device 1 | 1 . . Storage 2 | 1 1 . Processor . | . . . Hackware . | . . . Protection 2 | . . 2 Artifact . | . . . Weapon 4 | 2 . 2 Energy Gun . | . . . Energy Cannon . | . . . Ballistic Gun 3 | 2 . 1 Ballistic Cannon . | . . . Launcher 1 | . . 1 Special Weapon . | . . . Impact Weapon . | . . . Slashing Weapon . | . . . Piercing Weapon . | . . . Special Melee Weapon . | . . . Unidentified Prototypes . | . . . Parts Lost 3 | . . 3 Power . | . . . Propulsion 2 | . . 2 Utility . | . . . Weapon 1 | . . 1 Highest Loss Streak 2 | . . 2 To Critical Strikes . | . . . Average Backups 7 | . 2 10 Power . | . 1 1 Propulsion 1 | . . 1 Utility 2 | . . 3 Weapon 3 | . . 4 Tool/Special . | . . . Unused Backups 12 | . . 12 Power . | . . . Propulsion 2 | . . 2 Utility 6 | . . 6 Weapon 4 | . . 4 Tool/Special . | . . . Average Slot Usage (%) 93 | . 99 91 Engine 11 | . 14 11 Treads 23 | . 27 21 Device 11 | . 14 11 Storage 11 | . 14 11 Protection 10 | . . 14 Ballistic Gun 20 | . 28 17 Launcher 2 | . . 3 Peak Build Rating 18 | 9 9 18 Average Rating 12 | 6 8 15 On Entrance 6 | . 9 9 Naked Turns . | . . . Heaviest Build 36 | 13 28 36 Greatest Support 40 | 40 40 40 Greatest Overweight (x) 3 | 3 1 1 Average Overweight (x) . | . . . Largest Inventory Capacity 15 | 8 15 15 Average Capacity 14 | 7 14 15 Most Carried 15 | 1 4 15 Average Carried 7 | . 2 10 Final Capacity 15 | 8 15 15 Final Carried 15 | 1 4 15 Class Distribution -------------------- 100% | Mutant Dominant Class ---------------- Mutant | -10/Materials Mutant | -9/Materials Resources | -11 -10 -9 ----------- Run | Yrd Mat Mat Matter Collected 626 | 264 52 310 Remotely . | . . . Salvage Created 898 | 85 87 726 Parts 65 | 9 5 51 Haulers Intercepted . | . . . Recyclers Shooed . | . . . Parts Field Recycled . | . . . Retrieved Matter . | . . . Parts Self-Destructed . | . . . Prevented . | . . . Kills | -11 -10 -9 ------- Run | Yrd Mat Mat Combat Hostiles Destroyed 26 | . 2 24 Guns 20 | . 2 18 AOE 6 | . . 6 Classes Destroyed 7 | 2 1 4 Worker 1 | . . 1 Tunneler 1 | 1 . . Recycler 1 | 1 . . Watcher 2 | . . 2 Swarmer 8 | . . 8 Grunt 17 | . 2 15 Sentry 1 | . . 1 Best Kill Streak 7 | 1 2 7 Combat Bots Only 7 | . 2 7 Max Kills in Single Turn 3 | 1 1 3 Gunslinging . | . . . Exploded 2 | . . 2 Melee . | . . . Uniques/NPCs Destroyed . | . . . Combat | -11 -10 -9 -------- Run | Yrd Mat Mat Hostile Shots Fired 119 | . 13 106 Missed 35 | . 4 31 Hits 84 | . 9 75 Projectile 84 | . 9 75 Damage Taken 984 | . 118 866 Core 158 | . 15 143 Absorbed by Shields . | . . . Redirected to Shielding 53 | . . 53 Core Remaining (%) 97 | 100 94 . Volleys Fired 73 | 9 9 55 Largest 2 | 2 2 2 Hottest 40 | 40 40 40 Shots Fired 94 | 18 18 58 Gun 86 | 18 18 50 Cannon . | . . . Launcher 8 | . . 8 Special . | . . . Kinetic 86 | 18 18 50 Thermal . | . . . Explosive 8 | . . 8 Electromagnetic . | . . . Robot Hit Streak 9 | 3 7 9 Robot Miss Streak 4 | 2 2 4 Penetration Max . | . . . Secondary Targets . | . . . Shots Hit Robots 72 | 11 14 47 Core Hits 57 | 4 6 47 Critical Kills . | . . . Critical Parts Destroyed . | . . . Critical Strikes . | . . . Melee Attacks . | . . . Impact . | . . . Slashing . | . . . Piercing . | . . . Sneak Attacks . | . . . Combat Hostiles . | . . . Follow-up Attacks . | . . . Damage Inflicted 1344 | 81 114 1149 Guns 858 | 81 114 663 Cannons . | . . . Explosions 486 | . . 486 Melee . | . . . Ramming . | . . . Kinetic 858 | 81 114 663 Thermal . | . . . Explosive 486 | . . 486 Electromagnetic . | . . . Impact . | . . . Slashing . | . . . Piercing . | . . . Highest Corruption . | . . . Average Corruption . | . . . Corruption Purged . | . . . Corruption Blocked . | . . . Overload Shots . | . . . Overflow Damage . | . . . Projectiles . | . . . Explosions . | . . . Melee . | . . . Knockbacks . | . . . Impact . | . . . Kinetic . | . . . Secondary . | . . . Self-Inflicted Damage 29 | . . 29 Shots 1 | . . 1 Rammed . | . . . Targets Rammed . | . . . Kicked . | . . . Crushed . | . . . Highest Temperature 15 | . 15 3 Average Temperature 7 | . 8 3 Received Heat Transfer 381 | . 69 312 Siege Activations . | . . . Martial Activations . | . . . Shielding Activations . | . . . Robots Disrupted . | . . . Combat Hostiles . | . . . Robots Corrupted . | . . . Combat Hostiles . | . . . Parts Fried . | . . . Impact Corruptions . | . . . Robots Melted . | . . . Combat Hostiles . | . . . Parts Melted . | . . . Heat Transferred . | . . . Parts Sabotaged . | . . . Parts Stolen . | . . . Parts Stripped . | . . . Power Chain Reactions . | . . . Alert | -11 -10 -9 ------- Run | Yrd Mat Mat Maximum Alert Level 1 | . . 1 Low Security (%) 85 | 100 100 78 Level 1 14 | . . 21 Level 2 . | . . . Level 3 . | . . . Level 4 . | . . . Level 5 . | . . . High Security . | . . . Max Security . | . . . Peak Influence 342 | 5 40 342 Initial . | . . . Average 64 | . 6 93 Influence Increases 712 | 10 50 652 Destroy 0b10 Robot/C 520 | . 40 480 Destroy 0b10 Robot/NC 25 | 10 . 15 Destroy Leader 104 | . 10 94 Successful Hack 7 | . . 7 Disable Machine 15 | . . 15 Destroy Structure 41 | . . 41 Influence Decreases 497 | 10 50 437 Time Decay 317 | 10 50 257 Lost Part 30 | . . 30 Purge Threat 150 | . . 150 Squads Dispatched 6 | . . 6 Investigation 2 | . . 2 Extermination . | . . . Reinforcement 4 | . . 4 Assault . | . . . Garrison . | . . . Intercept . | . . . Searches Triggered . | . . . Construction Impeded 1 | . . 1 Haulers Reinforced . | . . . Active Scanning Responses . | . . . Cargo Convoy Interrupts . | . . . Stealth | -11 -10 -9 --------- Run | Yrd Mat Mat Distress Signals 3 | . 1 2 Communications Jammed . | . . . Distress Signals . | . . . Times Spotted 38 | . 4 34 Peak Tracking Total 5 | . 2 5 Tactical Retreats . | . . . Traps | -11 -10 -9 ------- Run | Yrd Mat Mat Traps Triggered 2 | . 1 1 Indirectly . | . . . Trap Hack Attempts . | . . . Triggered . | . . . Disarmed . | . . . Reprogrammed . | . . . Reused . | . . . Traps Extracted . | . . . Installed . | . . . Triggered . | . . . Machines | -11 -10 -9 ---------- Run | Yrd Mat Mat Machines Disabled 1 | . . 1 Max in Single Turn 1 | . . 1 Machines Repaired . | . . . Machines Dismantled . | . . . Machines Sabotaged . | . . . Overloaded Fab Kills . | . . . Hacking | -11 -10 -9 --------- Run | Yrd Mat Mat Machines Accessed 3 | . . 3 Terminals 3 | . . 3 Fabricators . | . . . Repair Stations . | . . . Recycling Units . | . . . Scanalyzers . | . . . Garrison Access . | . . . Total Hacks 5 | . . 5 Successful 3 | . . 3 Failed 2 | . . 2 Catastrophic 1 | . . 1 Database Lockouts . | . . . Manual 3 | . . 3 Terminals 5 | . . 5 Fabricators . | . . . Repair Stations . | . . . Recycling Units . | . . . Scanalyzers . | . . . Garrison Access . | . . . Terminal Hacks 3 | . . 3 Alert Level 1 | . . 1 Unreport Threat 1 | . . 1 Patrol Status 1 | . . 1 Fabricator Hacks . | . . . Repair Station Hacks . | . . . Recycling Unit Hacks . | . . . Scanalyzer . | . . . Garrison Access Hacks . | . . . Unauthorized Hacks . | . . . Terminals . | . . . Fabricators . | . . . Repair Stations . | . . . Recycling Units . | . . . Scanalyzers . | . . . Garrison Access . | . . . Data Cores Recovered . | . . . Used . | . . . Hacking Detections 2 | . . 2 Full Trace Events 1 | . . 1 Feedback Events . | . . . Feedback Blocked . | . . . Robot Schematics Acquired . | . . . Robots Built . | . . . Authchips . | . . . Time . | . . . Total Robot Build Rating . | . . . Part Schematics Acquired . | . . . Parts Built . | . . . Authchips . | . . . Time . | . . . Total Part Build Rating . | . . . Parts Repaired . | . . . Time . | . . . Parts Recycled . | . . . Recycled Matter . | . . . Retrieved Matter . | . . . Retrieved Components . | . . . Parts Scanalyzed . | . . . Part Schematics Acquired . | . . . Parts Damaged . | . . . Bothacking | -11 -10 -9 ------------ Run | Yrd Mat Mat Used RIF Installer . | . . . Robots Hacked . | . . . Non-combat . | . . . Combat . | . . . Robot Hacks Applied . | . . . Relay Couplers Released . | . . . Fabnet Peak Effective % . | . . . Robots Rewired . | . . . Allies Hacked . | . . . Hacks Repelled . | . . . Allies | -11 -10 -9 -------- Run | Yrd Mat Mat Total Allies . | . . . Largest Group . | . . . Highest-Rated Group . | . . . Highest-Rated Ally . | . . . Total Orders . | . . . Ally Attacks . | . . . Total Damage . | . . . Kills . | . . . Allies Corrupted . | . . . Allies Melted . | . . . Intel | -11 -10 -9 ------- Run | Yrd Mat Mat Active Infowar (turns) 1219 | 33 302 884 Terrain 1219 | 33 302 884 Robot Analysis Total . | . . . Derelict Logs Recovered . | . . . Drone Launches . | . . . Drone Recoveries . | . . . Exploration | -11 -10 -9 ------------- Run | Yrd Mat Mat Turns Passed 1308 | 122 302 884 Spaces Moved 602 | 56 116 430 Core 7 | 7 . . Treads 595 | 49 116 430 Legs . | . . . Wheels . | . . . Hover . | . . . Flight . | . . . Fastest Speed 50 | 50 160 160 Average Speed 160 | 157 161 160 Slowest Speed 240 | 200 240 240 Overloaded Moves . | . . . Propulsion Burnouts . | . . . Robots Hopped . | . . . Potential Cave-ins . | . . . Cave-ins Triggered . | . . . Exploration Rate (%) 22 | 4 26 38 Regions Visited 2 Branch Regions . Pre-discovered Areas . | . . . Known Exits Taken . | . . . Unknown Exits Taken 2 | 1 1 . Scrap Searched . | . . . Spaces Dug . | . . . Terrain Destroyed 50 | . . 50 Melee . | . . . Projectile . | . . . AOE 50 | . . 50 Terrain Rammed . | . . . Walls Destroyed . | . . . Machines Disabled . | . . . Actions | -11 -10 -9 --------- Run | Yrd Mat Mat Total 852 | 72 216 564 Wait 147 | . 86 61 Move 600 | 55 115 430 Hop . | . . . Pick Up 15 | 1 3 11 Fast Attach 12 | 7 1 4 Attach . | . . . Detach . | . . . Swap 4 | . 1 3 Drop 1 | . 1 . Fire 73 | 9 9 55 Melee . | . . . Ram . | . . . Kick . | . . . Crush . | . . . Escape Stasis . | . . . Rewire . | . . . Trap . | . . . Miscellaneous . | . . . Route ------- -11/Scrapyard -10/Materials -9/Materials (discovered 2 exits: [*Mat x2]) History --------- Turn | Location | Event 25 | -11/Scrapyard | Discovered new exit (range 15) 123 | -11/Scrapyard | Entered Materials 124 | -10/Materials | Met a group of wandering Federalists 313 | -10/Materials | Build established: Mutant 376 | -10/Materials | Discovered new exit (range 16) 425 | -10/Materials | Entered another Materials area 425 | -9/Materials | Evolved 2 slots: Utility x2 864 | -9/Materials | Discovered new exit (range 13) 1028 | -9/Materials | Destroyed 7 combat bots 1148 | -9/Materials | Discovered new exit (range 15) 1309 | -9/Materials | Self-destructed Last Messages --------------- reinforcements to Terminal M004. U-05 Engineer lays Concrete. K-01 Serf collects debris. K-01 Serf cleans the Atomic Centrifuge. K-01 Serf collects debris. K-01 Serf cleans the Atomic Centrifuge. K-01 Serf collects debris. U-05 Engineer lays Concrete. U-05 Engineer builds a Wall. U-05 Engineer lays Concrete. U-05 Engineer builds a Wall. G-34 Mercenary destroyed. Acquired 34 matter. G-34 Mercenary destroyed. Acquired 16 matter. K-01 Serf collects debris. G-34 Mercenary destroyed. K-01 Serf destroyed. Shotgun destroyed. R-06 Scavenger collects Ion Engine. Map ----- +----------------------------------------------------+ | ??????????????????????# +? ???????????????????? | | ???????????????????#??# #??? ?????????????????? | | ??????????#???????????# #?????????????????????? | | ????????????#???? ?"??# ##########????????????? | | ???????????##?????????# ????????????? | | ???????#????#?????"???# ???????????? | | ??????????#?#? ???????+ ???????????? | | ??????????????? ????" # ???????????? | | ????????????????? ????? ??????????? | | ????????????????????? ?# ??????????? | | ????????????#???? ????# """????????????? | | ?????????#???########### "" ??????????? | | ??????????#??# # "T" " " "?????????? | | ?????????????# """ """=#! ???????? | | ?????????????# """ """%+!* ???????? | | ?????????????# """ """%#* #?????????? | | ??????? ?? ?## # ######+###?????????? | | ?????????????# # #?# ?????????"? | | ?????????????# # #??? """ ?? ???? | | ????????? ??## # ##???? """?#??????"? | | ??????? ?? ??########### ###????"""???"?????? | | ??????#???????????##??## #?? ?? ?????????? | | ????????#######??#????## = ##? ""????"????? | | ????????? ########?##[ * ### ""??????????? | | ???????? ####=r + ""?????????#? | | ???????? #?## @ ## ???##?### | | ????????? #### #?????????#???#?# | | ???????#????????# o #???###????????## | | ???????????????## Y ###############?# | | ?????????? ?????# %= % # ############ | | ????????????????# =%#####[ a### ## # %#! | | ??????????? ????# *#???# ==#== | | ????????????#???# #??## T %+! | | ????????????????# #####+## = #[= | | ????????????????# ## ######### ## # %#[ | | ??????????? ????# ## """ ## # ###### #### | | ??????? ????#???# ## """ ######### # | | ????????????????# ## """ #???????# # | | ????????????#???# ## ##??????# """ + | | ????????????????# ?#######???????# """ # #### | | ????????????????# ?? ?????? ???#?# """ # ## " | | ???????????????? ?? ????????????# # ## " | | ???????????????? ????? ?????????#####?## ## | | ???????????????# ???????? ??????????#### ## | | ???????????????? ????????????#?????????# ## | | ????????????????? ?????????????#???#????# ## | | ????????????????????????????????? ???? ???# ## | | ??????????????????????????????????????????# ## | | ???????????????????????????????????? ????## ## ! | | ???????????????????????????????????????#?# ### | +----------------------------------------------------+ Best States ------------- Heat Dissipation 28 Energy Generation 10 Energy Capacity 250 Matter Stores 300 Matter Capacity 300 Sight Range 16 Terrain Scan Range 16 Terrain Scan Density 10 Power Shielding 66 Evasion (%) 40 Recoil Reduction 2 Item Schematics ----------------- None Robot Schematics ------------------ None Fabricated ------------ Nothing Repaired ---------- Nothing Alien Tech Used ----------------- None Achievements -------------- None Challenges ------------ None Game ------ Seed ShockMicroWartreads Manual? 0 Play Time 00:27:21 Cumulative 23.6 hours Start 2025.05.17 @ 16:54:02 End 2025.09.20 @ 19:57:06 Sessions 3 Manual Loads 0 Difficulty Rogue Special Mode None Game No. 36 Rogue 25 Adventurer 11 Explorer 0 Win Type - Total 0 Types 0/0/0/0/0/0/0/0/0/0 Lore% 4 Gallery% 14 Achievement% 16 Wizard Run 0 Options --------- Layout 1 ASCII 0 Keyboard 1 Movement Vi Keybinds 0 Fullscreen 1 Font 24/Smallcaps Map View 50x35 Zoom Use 0% Tactical HUD 0 Map Filters NONE Filters NONE Steam 1 RUN: 1aa6b5d8-3771-4669-ab95-8d13f82816fe